bitfinex/quotes_BTCUSD_20250418
["timestamp","ask_amount","ask_price","bid_price","bid_amount"]
[1744979787290,0.01685556,84599.0,84598.0,0.67221889]
[1744979787517,0.001,84599.0,84598.0,0.67221889]
[1744979788221,0.01685187,84599.0,84598.0,0.67221889]
[1744979788427,0.001,84599.0,84598.0,0.67221889]
[1744979789819,0.01685373,84599.0,84598.0,0.67221889]
[1744979790035,0.001,84599.0,84598.0,0.67221889]
[1744979790744,0.00077917,84600.0,84599.0,0.55276847]
[1744979790951,0.00077917,84600.0,84599.0,0.67221638]
[1744979793976,0.00077917,84600.0,84599.0,0.67693838]
[1744979795236,0.00077917,84600.0,84599.0,1.08893838]
[1744979796392,0.00077917,84600.0,84599.0,1.22645838]
[1744979796561,0.00077917,84600.0,84599.0,1.29730838]
[1744979796853,0.00077917,84600.0,84599.0,1.22645838]
[1744979800357,0.0004209,84603.0,84602.0,0.55276092]
[1744979800596,0.0004211,84604.0,84603.0,0.55275841]
[1744979800796,0.0004211,84604.0,84603.0,0.67220632]
[1744979811280,0.0004211,84604.0,84603.0,0.67320632]
[1744979814801,0.0004211,84604.0,84603.0,0.50805899]
[1744979828488,0.0004211,84604.0,84603.0,0.67320632]
[1744979831916,0.00014194,84604.0,84603.0,0.67320632]
[1744979843533,0.00014194,84604.0,84603.0,0.55375841]
[1744979843727,0.00014194,84604.0,84603.0,0.341]
[1744979844275,0.00014194,84604.0,84603.0,0.55375841]
[1744979844474,0.01608829,84604.0,84603.0,0.55375841]
[1744979846307,0.00014194,84604.0,84603.0,0.55375841]
[1744979848356,0.00014194,84604.0,84603.0,0.67320632]
[1744979851701,0.00014194,84604.0,84603.0,0.67420632]
[1744979853545,0.00014194,84604.0,84603.0,0.33420632]
[1744979855662,0.00014194,84604.0,84603.0,0.67420632]
[1744979870184,0.00381323,84609.0,84608.0,0.55274583]
[1744979870384,0.00381323,84609.0,84608.0,0.67219374]
[1744979871183,0.00381323,84609.0,84608.0,0.67319374]
[1744979873587,0.00381323,84609.0,84608.0,0.68191967]
[1744979875784,0.00381323,84609.0,84608.0,0.68168737]
[1744979876639,0.00381323,84609.0,84608.0,0.67296144]
[1744979876812,0.00381323,84609.0,84608.0,1.08596144]
[1744979877026,0.000421,84618.0,84613.0,0.55273326]
[1744979877231,0.000421,84618.0,84613.0,0.67218117]
[1744979878485,0.01046583,84614.0,84613.0,0.67218117]
[1744979880488,0.01046583,84614.0,84613.0,0.69028383]
[1744979881685,0.01046583,84614.0,84613.0,0.69128383]
[1744979898939,0.01046583,84614.0,84613.0,0.47855057]
[1744979899239,0.01046583,84614.0,84613.0,0.69128383]
[1744979899438,0.000421,84618.0,84614.0,0.55273075]
[1744979899660,0.000421,84618.0,84614.0,0.67217866]
[1744979911784,0.000421,84618.0,84614.0,0.67317866]
[1744979913061,0.004,84629.0,84614.0,0.67317866]
[1744979913062,0.003158,84629.0,84628.0,0.55269556]
[1744979913409,0.00321119,84629.0,84628.0,0.68107771]
[1744979915417,0.01180019,84631.0,84630.0,0.55269053]
[1744979915634,0.01180019,84631.0,84630.0,0.67213844]
[1744979920319,0.0004208,84632.0,84631.0,0.55268802]
[1744979920624,0.0004208,84632.0,84631.0,0.67213593]
[1744979923155,0.01392831,84632.0,84631.0,0.67213593]
[1744979923319,0.0004208,84632.0,84631.0,0.67213593]
[1744979923903,0.0004208,84632.0,84627.0,0.21269732]
[1744979923904,0.01181795,84617.0,84608.0,0.14649921]
[1744979924217,0.01181795,84617.0,84614.0,0.00205319]
[1744979924218,0.23636471,84615.0,84614.0,0.00205319]
[1744979924426,0.24985069,84615.0,84614.0,0.00205319]
[1744979930091,0.01348598,84615.0,84614.0,0.55478394]
[1744979930331,0.01348598,84615.0,84614.0,0.34205319]
[1744979930525,0.24817742,84617.0,84614.0,0.34205319]
[1744979930732,0.01343259,84615.0,84614.0,0.34205319]
[1744979931149,0.2497973,84615.0,84614.0,0.34005319]
[1744979931376,0.01343259,84615.0,84614.0,0.34005319]
[1744979931615,0.01320744,84615.0,84614.0,0.34005319]
[1744979931821,0.24817742,84617.0,84614.0,0.34005319]
[1744979932029,0.01341425,84616.0,84614.0,0.55278391]
[1744979933306,0.01341425,84616.0,84615.0,0.21272823]
[1744979933906,0.24817668,84618.0,84616.0,0.34]
[1744979934107,0.24817463,84618.0,84616.0,0.34]
[1744979934357,0.01181781,84618.0,84616.0,0.55272418]
[1744979934564,0.23635652,84618.0,84616.0,0.35181809]
[1744979935109,0.23635652,84618.0,84616.0,0.34]
[1744979935512,0.23635739,84618.0,84616.0,0.34]
[1744979935814,0.23635912,84617.0,84615.0,0.01181823]
[1744979936666,0.23636339,84616.0,84614.0,0.01187156]
[1744979936874,0.23636471,84615.0,84614.0,0.00105319]
[1744979937622,0.23636339,84616.0,84614.0,0.00105319]
[1744979939412,0.01335784,84615.0,84614.0,0.00105319]
[1744979939570,0.24972255,84615.0,84614.0,0.00105319]
[1744979941708,0.24972255,84615.0,84614.0,5.319e-05]
[1744979950769,0.01335784,84615.0,84614.0,0.34105319]
[1744979951099,0.23636216,84616.0,84614.0,0.55378394]
[1744979951457,0.01332062,84615.0,84614.0,0.34105319]
[1744979951582,0.24943416,84615.0,84614.0,0.34105319]
[1744979951786,0.24943416,84615.0,84614.0,0.00105319]
[1744979954012,0.2363675,84614.0,84612.0,0.22455308]
[1744979954216,0.2363675,84614.0,84610.0,0.22455945]
[1744979954375,0.01329882,84613.0,84610.0,0.22455945]
[1744979954785,0.01329882,84613.0,84611.0,0.2127358]
[1744979955183,0.24818313,84615.0,84611.0,0.22455459]
[1744979955381,0.01329839,84612.0,84611.0,0.22455459]
[1744979955609,0.248186,84614.0,84611.0,0.22455459]
[1744979955784,0.01329839,84612.0,84611.0,0.22455459]
[1744979955991,0.24818624,84614.0,84612.0,0.21273513]
[1744979956270,0.24818624,84614.0,84612.0,0.01551819]
[1744979956475,0.24818624,84614.0,84611.0,0.22455459]
[1744979957635,0.23637053,84613.0,84611.0,0.22455459]
[1744979957837,0.24818624,84614.0,84611.0,0.22455459]
[1744979958035,0.24818624,84614.0,84611.0,0.01181879]
[1744979958605,0.24818624,84614.0,84611.0,0.2245561]
[1744979959157,0.24966944,84613.0,84611.0,0.2245561]
[1744979959345,0.24966944,84613.0,84611.0,0.34]
[1744979959548,0.23637309,84612.0,84611.0,0.34]
[1744979960011,0.24967148,84612.0,84611.0,0.34]
[1744979960410,0.24967148,84612.0,84611.0,0.01540454]
[1744979960615,0.24967148,84612.0,84609.0,0.56456195]
[1744979960850,0.24967148,84612.0,84609.0,0.68400986]
[1744979961738,0.23637597,84611.0,84609.0,0.68400986]
[1744979962158,0.01331036,84610.0,84609.0,0.68400986]
[1744979962776,0.24819174,84612.0,84609.0,0.68400986]
[1744979962967,0.01331036,84610.0,84609.0,0.68400986]
[1744979963169,0.01181851,84613.0,84611.0,0.34]
[1744979963374,0.24818925,84613.0,84611.0,0.34]
[1744979963745,0.24818925,84613.0,84611.0,0.35533137]
[1744979963746,0.23637309,84612.0,84611.0,0.35533137]
[1744979964390,0.23637309,84612.0,84611.0,0.01533137]
[1744979964765,0.23637867,84610.0,84609.0,0.11944791]
[1744979965089,0.23637606,84611.0,84609.0,0.13488811]
[1744979965303,0.23637867,84610.0,84609.0,0.13488811]
[1744979968252,0.23637867,84610.0,84609.0,0.3554402]
[1744979974564,0.2496931,84610.0,84609.0,0.3554402]
[1744979985102,0.2496931,84610.0,84603.0,0.35181991]
[1744979985309,0.24821211,84606.0,84603.0,0.01186494]
[1744979985479,0.24821211,84606.0,84603.0,0.22462291]
[1744979985697,0.0133066,84605.0,84603.0,0.22462291]
[1744979987185,0.0133066,84605.0,84603.0,0.24006051]
[1744979987998,0.0133066,84605.0,84604.0,0.21275589]
[1744979988904,0.0133066,84605.0,84604.0,0.55275589]
[1744979989099,0.0133066,84605.0,84604.0,0.34]
[1744979989609,0.23638428,84608.0,84606.0,0.34]
[1744979989811,0.24820349,84608.0,84604.0,0.01181977]
[1744979989955,0.01181907,84609.0,84606.0,0.21275086]
[1744979990161,0.23638628,84608.0,84605.0,0.56457239]
[1744979991815,0.24820548,84609.0,84608.0,0.34]
[1744979993612,0.2363848,84608.0,84607.0,0.34]
[1744979997578,0.01181907,84609.0,84607.0,0.55274835]
[1744979998122,0.24820154,84609.0,84607.0,0.34]
[1744979999562,0.01181865,84612.0,84609.0,0.21274332]
[1744979999851,0.24820007,84610.0,84607.0,0.2245677]
[1744980000065,0.24820007,84610.0,84602.0,0.40520371]
[1744980000066,0.01181809,84616.0,84612.0,0.01181865]
[1744980000265,0.23636664,84615.0,84612.0,0.22455352]
[1744980000487,0.23636946,84614.0,84611.0,0.22455218]
[1744980000688,0.23637072,84613.0,84611.0,0.22455218]
[1744980001407,0.23637072,84613.0,84610.0,0.01181893]
[1744980001408,0.23637072,84613.0,84610.0,0.22455961]
[1744980002905,0.24818923,84613.0,84610.0,0.22455961]
[1744980004077,0.23637373,84612.0,84610.0,0.22455961]
[1744980004284,0.01301031,84611.0,84609.0,0.22456239]
[1744980004422,0.01301031,84611.0,84609.0,0.3440103]
[1744980005722,0.24938772,84611.0,84609.0,0.11944791]
[1744980006043,0.23637867,84610.0,84609.0,0.11944791]
[1744980006401,0.24938707,84610.0,84609.0,0.11944791]
[1744980007165,0.24938707,84610.0,84606.0,0.0302796]
[1744980007345,0.24938707,84610.0,84606.0,0.14972751]
[1744980007550,0.24938707,84610.0,84607.0,0.2127464]
[1744980008507,0.23638218,84609.0,84606.0,0.36247636]
[1744980008665,0.01300804,84608.0,84607.0,0.22456726]
[1744980008867,0.23638147,84609.0,84607.0,0.22456726]
[1744980009063,0.01300804,84608.0,84606.0,0.36247826]
[1744980009292,0.24939327,84608.0,84606.0,0.14972751]
[1744980010154,0.01300804,84608.0,84606.0,0.36247644]
[1744980010555,0.01300804,84608.0,84606.0,0.01846011]
[1744980011435,0.23638706,84607.0,84606.0,0.01846011]
[1744980011754,0.24939612,84607.0,84606.0,0.01846011]
[1744980014656,0.25039612,84607.0,84606.0,0.01846011]
[1744980019636,0.23639544,84604.0,84603.0,0.01548263]
[1744980019838,0.24938727,84604.0,84603.0,0.01548263]
[1744980023656,0.24938727,84604.0,84603.0,0.03394472]
[1744980031879,0.25280386,84604.0,84603.0,0.03394472]
[1744980043006,0.25280386,84604.0,84603.0,0.01850712]
[1744980044580,0.25380386,84604.0,84603.0,0.01850712]
[1744980046082,0.37325177,84604.0,84603.0,0.01850712]
[1744980055406,0.25380386,84604.0,84603.0,0.01850712]
[1744980061700,0.25280386,84604.0,84603.0,0.01850712]
[1744980071123,0.23641433,84598.0,84595.0,0.10868606]
[1744980071348,0.01636143,84597.0,84595.0,0.10868606]
[1744980071529,0.01636143,84597.0,84595.0,0.10968606]
[1744980072536,0.2527787,84597.0,84594.0,0.22459749]
[1744980072741,0.2527787,84597.0,84594.0,0.24219778]
[1744980073663,0.01636143,84597.0,84594.0,0.24219778]
[1744980073823,0.01636143,84597.0,84595.0,0.21277837]
[1744980074483,0.25277689,84597.0,84594.0,0.24219778]
[1744980074849,0.26459764,84597.0,84594.0,0.24219778]
[1744980076494,0.02818218,84597.0,84594.0,0.24219778]
[1744980076671,0.01636143,84597.0,84596.0,0.21277601]
[1744980076876,0.24823021,84599.0,84594.0,0.24219778]
[1744980077084,0.25277486,84598.0,84595.0,0.21277659]
[1744980077481,0.01636181,84598.0,84597.0,0.2127735]
[1744980077746,0.24822937,84600.0,84597.0,0.2127735]
[1744980077952,0.01636819,84599.0,84597.0,0.2127735]
[1744980078185,0.25277805,84599.0,84596.0,0.22459611]
[1744980078601,0.01636819,84599.0,84598.0,0.21277098]
[1744980078817,0.01636819,84599.0,84598.0,0.55277098]
[1744980079017,0.01182005,84602.0,84600.0,0.21276584]
[1744980079131,0.001,84603.0,84601.0,0.21276283]
[1744980079331,0.01636936,84602.0,84601.0,0.21276283]
[1744980084671,0.01636936,84602.0,84600.0,0.22458617]
[1744980085778,0.25277061,84602.0,84600.0,0.22458617]
[1744980087922,0.23640661,84600.0,84599.0,0.34]
[1744980088166,0.24822694,84600.0,84599.0,0.34]
[1744980088410,0.26460926,84600.0,84599.0,0.34]
[1744980097527,0.23641131,84599.0,84597.0,0.01182075]
[1744980097699,0.01638194,84598.0,84597.0,0.01182075]
[1744980098871,0.25279416,84598.0,84596.0,0.22459508]
[1744980099071,0.01638194,84598.0,84596.0,0.22459508]
[1744980099977,0.01638194,84598.0,84597.0,0.2127735]
[1744980100197,0.23640948,84599.0,84597.0,0.2127735]
[1744980100432,0.01638194,84598.0,84597.0,0.2127735]
[1744980100569,0.01638194,84598.0,84597.0,0.5527735]
[1744980100755,0.24822415,84601.0,84598.0,0.55277073]
[1744980100952,0.01638272,84600.0,84598.0,0.55277073]
[1744980101194,0.25279056,84600.0,84598.0,0.55277073]
[1744980102610,0.23640941,84599.0,84597.0,0.22459425]
[1744980102823,0.23641779,84596.0,84595.0,0.34]
[1744980103340,0.25280078,84596.0,84595.0,0.34]
[1744980104114,0.23642059,84595.0,84594.0,0.35760029]
[1744980104313,0.25280319,84595.0,84594.0,0.34]
[1744980105735,0.25280319,84595.0,84594.0,0.01825643]
[1744980106052,0.25280319,84595.0,84593.0,0.34]
[1744980106251,0.0163826,84595.0,84594.0,0.21278104]
[1744980106610,0.24823067,84599.0,84597.0,0.34]
[1744980107056,0.01638377,84598.0,84597.0,0.34]
[1744980107247,0.01638377,84598.0,84597.0,0.5527735]
[1744980111168,0.01738377,84598.0,84597.0,0.5527735]
[1744980119840,0.01738377,84598.0,84595.0,0.01182102]
[1744980119841,0.23641536,84597.0,84595.0,0.55277732]
[1744980120038,0.26561729,84598.0,84597.0,0.34]
[1744980120207,0.24923352,84598.0,84597.0,0.34]
[1744980120445,0.001,84598.0,84597.0,0.5527735]
[1744980121717,0.01182019,84601.0,84600.0,0.34]
[1744980121915,0.01282019,84601.0,84600.0,0.34]
[1744980122793,0.24922401,84601.0,84600.0,0.34]
[1744980124185,0.001,84601.0,84600.0,0.34]
[1744980124398,0.01736436,84601.0,84600.0,0.55276595]
[1744980126819,0.001,84601.0,84600.0,0.55276595]
[1744980127608,0.01736709,84601.0,84600.0,0.55276595]
[1744980128407,0.001,84601.0,84600.0,0.55276595]
[1744980128976,0.001,84601.0,84600.0,0.67221386]
[1744980140734,0.001,84601.0,84598.0,0.35182061]
[1744980140955,0.25282169,84600.0,84598.0,0.34]
[1744980141122,0.25282169,84600.0,84599.0,0.55276847]
[1744980141123,0.01641508,84600.0,84599.0,0.55276847]
[1744980141592,0.001,84601.0,84600.0,0.55276595]
[1744980141879,0.01741547,84601.0,84600.0,0.55276595]
[1744980142082,0.001,84601.0,84600.0,0.55276595]
[1744980142291,0.01741547,84601.0,84600.0,0.55276595]
[1744980142490,0.001,84601.0,84600.0,0.55276595]
[1744980142715,0.01741547,84601.0,84600.0,0.55276595]
[1744980142887,0.001,84601.0,84600.0,0.55276595]
[1744980143113,0.01741547,84601.0,84600.0,0.55276595]
[1744980143321,0.001,84601.0,84599.0,0.34]
[1744980143513,0.01741547,84601.0,84599.0,0.55276644]
[1744980143717,0.001,84601.0,84600.0,0.21276595]
[1744980145743,0.001,84601.0,84599.0,0.55276644]
[1744980146066,0.001,84601.0,84600.0,0.21276595]
[1744980146502,0.001,84601.0,84599.0,0.34]
[1744980146692,0.01282019,84601.0,84598.0,0.5645913]
[1744980147248,0.001,84601.0,84600.0,0.34]
[1744980147452,0.001,84601.0,84600.0,0.55276595]
[1744980151335,0.01182075,84597.0,84594.0,0.35829588]
[1744980151535,0.23640948,84599.0,84594.0,0.48956495]
[1744980151734,0.01639471,84598.0,84597.0,0.5527735]
[1744980151992,0.01639471,84598.0,84597.0,0.34]
[1744980152198,0.25280691,84598.0,84597.0,0.34]
[1744980152401,0.01639471,84598.0,84597.0,0.5527735]
[1744980160425,0.001,84599.0,84597.0,0.5527735]
[1744980160624,0.001,84599.0,84598.0,0.55277098]
[1744980167152,0.001,84599.0,84598.0,0.67221889]
[1744980168471,0.01738318,84599.0,84598.0,0.67221889]
[1744980168682,0.001,84599.0,84598.0,0.67221889]
[1744980168878,0.01738318,84599.0,84598.0,0.67221889]
[1744980169101,0.001,84599.0,84598.0,0.67221889]
[1744980169303,0.01738318,84599.0,84598.0,0.67221889]
[1744980169514,0.001,84599.0,84598.0,0.67221889]
[1744980169714,0.01738318,84599.0,84598.0,0.67221889]
[1744980169938,0.001,84599.0,84598.0,0.67221889]
[1744980170112,0.01738318,84599.0,84598.0,0.67221889]
[1744980170320,0.001,84599.0,84598.0,0.67221889]
[1744980170535,0.01738318,84599.0,84598.0,0.67221889]
[1744980170832,0.001,84599.0,84598.0,0.67221889]
[1744980171224,0.24826238,84604.0,84603.0,0.34]
[1744980171419,0.01186474,84604.0,84603.0,0.34]
[1744980171620,0.00104497,84604.0,84603.0,0.55275841]
[1744980174174,0.00104497,84604.0,84603.0,0.34]
[1744980176564,0.00104497,84604.0,84603.0,0.55275841]
[1744980177946,0.00104497,84604.0,84603.0,0.34]
[1744980179857,0.00104497,84604.0,84603.0,0.55275841]
[1744980180111,0.00104497,84604.0,84603.0,0.34]
[1744980181420,0.00104497,84604.0,84603.0,0.55275841]
[1744980183855,0.00104497,84604.0,84603.0,0.34]
[1744980184296,0.00104497,84604.0,84603.0,0.55275841]
[1744980184799,0.01743081,84604.0,84603.0,0.55275841]
[1744980185034,0.00104497,84604.0,84603.0,0.55275841]
[1744980185257,0.01743081,84604.0,84603.0,0.55275841]
[1744980185520,0.00104497,84604.0,84603.0,0.55275841]
[1744980185727,0.01743081,84604.0,84601.0,0.21276344]
[1744980185936,0.00104497,84604.0,84603.0,0.34]
[1744980186123,0.00104497,84604.0,84603.0,0.55275841]
[1744980186354,0.23744041,84604.0,84603.0,0.34]
[1744980186578,0.00104497,84604.0,84603.0,0.34]
[1744980187104,0.00104497,84604.0,84603.0,0.55275841]
[1744980191999,0.00104497,84604.0,84603.0,0.21275841]
[1744980194776,0.23640064,84603.0,84601.0,0.01182019]
[1744980194997,0.01181991,84603.0,84600.0,0.22458628]
[1744980195216,0.00104497,84604.0,84602.0,0.21275903]
[1744980195425,0.00104497,84604.0,84600.0,0.01182033]
[1744980195426,0.00104497,84604.0,84603.0,0.21275841]
[1744980196051,0.01742655,84604.0,84603.0,0.21275841]
[1744980200180,0.01742655,84604.0,84603.0,0.55275841]
[1744980204604,0.00104497,84604.0,84603.0,0.55275841]
[1744980205920,0.01742567,84604.0,84603.0,0.55275841]
[1744980206132,0.00104497,84604.0,84603.0,0.55275841]
[1744980206323,0.01742567,84604.0,84603.0,0.55275841]
[1744980206528,0.00104497,84604.0,84603.0,0.55275841]
[1744980206726,0.01742567,84604.0,84603.0,0.55275841]
[1744980206931,0.00104497,84604.0,84603.0,0.55275841]
[1744980207117,0.01742567,84604.0,84603.0,0.55275841]
[1744980207274,0.00104497,84604.0,84603.0,0.55275841]
[1744980207476,0.01742567,84604.0,84603.0,0.55275841]
[1744980211662,0.01842567,84604.0,84603.0,0.55275841]
[1744980219084,0.00204497,84604.0,84603.0,0.67220632]
[1744980226849,0.00204497,84604.0,84603.0,0.11944791]
[1744980227046,0.00204497,84604.0,84603.0,0.33220632]
[1744980231286,4.497e-05,84604.0,84603.0,0.33220632]
[1744980231804,4.497e-05,84604.0,84603.0,0.67220632]
[1744980238615,0.00104497,84604.0,84603.0,0.67220632]
[1744980242218,0.00104497,84604.0,84603.0,0.55275841]
[1744980245389,0.0174485,84604.0,84603.0,0.55275841]
[1744980245549,0.00104497,84604.0,84603.0,0.55275841]
[1744980245747,0.0174485,84604.0,84603.0,0.55275841]
[1744980249716,0.00104497,84604.0,84603.0,0.55275841]
[1744980250920,0.01743304,84604.0,84603.0,0.55275841]
[1744980251837,0.00104497,84604.0,84603.0,0.55275841]
[1744980256583,0.00113883,84604.0,84603.0,0.55275841]
[1744980268328,0.01182061,84598.0,84594.0,0.01829588]
[1744980268534,0.0139586,84604.0,84580.0,0.000842]
[1744980268535,0.24827451,84584.0,84580.0,0.17483202]
[1744980268735,0.01637329,84583.0,84580.0,0.000842]
[1744980268962,0.01637329,84583.0,84580.0,0.3449282]
[1744980269160,0.24827325,84585.0,84581.0,0.34]
[1744980269341,0.24826654,84587.0,84581.0,0.55281146]
[1744980269519,0.25282129,84586.0,84581.0,0.55281146]
[1744980269724,0.01182256,84584.0,84581.0,0.34]
[1744980269968,0.01637329,84583.0,84581.0,0.35882993]
[1744980270164,0.25282927,84583.0,84581.0,0.01882993]
[1744980270374,0.23645972,84581.0,84580.0,0.000842]
[1744980270541,0.23645972,84581.0,84580.0,0.0192741]
[1744980270741,0.2527374,84581.0,84580.0,0.0192741]
[1744980271683,0.2537374,84581.0,84580.0,0.0192741]
[1744980274754,0.25382825,84581.0,84580.0,0.0192741]
[1744980291219,0.25282825,84581.0,84580.0,0.0192741]
[1744980291425,0.25382825,84581.0,84580.0,0.0192741]
[1744980301467,0.01736853,84581.0,84580.0,0.0192741]
[1744980301669,0.01736853,84581.0,84580.0,0.57209036]
[1744980301871,0.01736853,84581.0,84580.0,0.69153827]
[1744980302028,0.00109085,84581.0,84580.0,0.69153827]
[1744980304426,0.01736204,84581.0,84580.0,0.69153827]
[1744980304603,0.00109085,84581.0,84580.0,0.69153827]
[1744980304807,0.01736204,84581.0,84580.0,0.69153827]
[1744980305014,0.00109085,84581.0,84580.0,0.69153827]
[1744980305389,0.01736204,84581.0,84580.0,0.45944791]
[1744980305538,0.01736225,84581.0,84580.0,0.67226417]
[1744980305748,0.01736225,84581.0,84580.0,0.33226417]
[1744980306876,0.01736225,84581.0,84580.0,0.35081157]
[1744980308685,0.01736225,84581.0,84580.0,0.13799531]
[1744980308883,0.25382197,84581.0,84580.0,0.13799531]
[1744980311748,0.25382197,84581.0,84580.0,0.47799531]
[1744980315177,0.25382197,84581.0,84580.0,0.3585474]
[1744980315376,0.26197106,84581.0,84580.0,0.3585474]
[1744980331716,0.26297106,84581.0,84580.0,0.3585474]
[1744980342039,0.02651134,84581.0,84580.0,0.3585474]
[1744980342238,0.02651134,84581.0,84580.0,0.57136366]
[1744980342698,0.02651134,84581.0,84580.0,0.69081157]
[1744980342916,0.00209085,84581.0,84580.0,0.69081157]
[1744980344697,0.00209085,84581.0,84580.0,0.47799531]
[1744980344931,0.00209085,84581.0,84580.0,0.69081157]
[1744980345110,0.02345484,84581.0,84580.0,0.69081157]
[1744980345351,0.00209085,84581.0,84580.0,0.33226417]
[1744980345543,0.02345484,84581.0,84580.0,0.34992523]
[1744980345700,0.00209085,84581.0,84580.0,0.34992523]
[1744980345907,0.02345484,84581.0,84580.0,0.34992523]
[1744980346809,0.02345484,84581.0,84580.0,0.23047732]
[1744980347164,0.02345484,84581.0,84580.0,0.01766106]
[1744980347592,0.02345484,84581.0,84579.0,0.21281781]
[1744980347957,0.02345484,84581.0,84580.0,0.21281626]
[1744980349071,0.02345484,84581.0,84580.0,0.22969469]
[1744980351247,0.02245484,84581.0,84580.0,0.22969469]
[1744980354467,0.02245484,84581.0,84580.0,0.01687843]
[1744980354776,0.25891457,84581.0,84579.0,0.21281781]
[1744980354910,0.02245484,84581.0,84580.0,0.21281626]
[1744980355272,0.02245484,84581.0,84580.0,0.22974044]
[1744980355716,0.02245484,84581.0,84580.0,0.01692418]
[1744980356049,0.02245484,84581.0,84579.0,0.34]
[1744980356510,0.02245484,84581.0,84579.0,0.55281651]
[1744980357449,0.02245484,84581.0,84578.0,0.56464449]
[1744980357665,0.25891544,84581.0,84579.0,0.01731548]
[1744980357877,0.25891544,84581.0,84578.0,0.6840924]
[1744980358545,0.02245484,84581.0,84580.0,0.55281626]
[1744980358780,0.01822819,84581.0,84580.0,0.34]
[1744980360524,0.25468791,84581.0,84580.0,0.34]
[1744980360732,0.01822819,84581.0,84580.0,0.34]
[1744980362271,0.01833734,84581.0,84580.0,0.34]
[1744980363474,0.01833734,84581.0,84580.0,0.52917001]
[1744980368463,0.01833734,84581.0,84580.0,0.64861792]
[1744980374291,0.01833734,84581.0,84580.0,0.45944791]
[1744980374540,0.01833734,84581.0,84580.0,0.64861792]
[1744980389346,0.25479706,84581.0,84580.0,0.45944791]
[1744980391759,0.25579706,84581.0,84580.0,0.45944791]
[1744980401633,0.25579706,84581.0,84580.0,0.11944791]
[1744980406174,0.23646252,84580.0,84579.0,0.01736891]
[1744980406373,0.2364737,84576.0,84575.0,0.3408422]
[1744980406579,0.2364737,84576.0,84575.0,0.46029011]
[1744980406718,0.25731262,84576.0,84575.0,0.46029011]
[1744980407601,0.25731262,84576.0,84575.0,0.48190631]
[1744980411273,0.25831262,84576.0,84575.0,0.48190631]
[1744980411475,0.02183892,84576.0,84575.0,0.48268447]
[1744980411672,0.25831262,84576.0,84575.0,0.14106411]
[1744980411923,0.02183892,84576.0,84575.0,0.14106411]
[1744980412127,0.25831262,84576.0,84575.0,0.14106411]
[1744980413491,0.02183892,84576.0,84575.0,0.14106411]
[1744980414346,0.02183892,84576.0,84575.0,0.35389296]
[1744980414545,0.02183892,84576.0,84575.0,0.14106411]
[1744980414744,0.25831262,84576.0,84575.0,0.14106411]
[1744980414927,0.02183892,84576.0,84575.0,0.14106411]
[1744980415125,0.25831262,84576.0,84575.0,0.14106411]
[1744980417856,0.25831262,84576.0,84575.0,0.48106411]
[1744980421997,0.02183892,84576.0,84575.0,0.69389296]
[1744980422202,0.25831262,84576.0,84575.0,0.48106411]
[1744980424359,0.25831262,84576.0,84575.0,0.3616162]
[1744980424569,0.25831262,84576.0,84575.0,0.0216162]
[1744980424850,0.25931262,84576.0,84575.0,0.0216162]
[1744980425021,0.24836677,84553.0,84550.0,0.13264]
[1744980425164,0.24835858,84556.0,84552.0,0.34]
[1744980425365,0.24835446,84557.0,84553.0,0.11944791]
[1744980425608,0.02075183,84555.0,84554.0,0.2128817]
[1744980425808,0.24835446,84557.0,84554.0,0.2128817]
[1744980425809,0.24835446,84557.0,84555.0,0.21287896]
[1744980426046,0.24835446,84557.0,84556.0,0.34]
[1744980426387,0.24835446,84557.0,84555.0,0.21287896]
[1744980426994,0.0118262,84558.0,84556.0,0.55287586]
[1744980427309,0.0118262,84558.0,84556.0,0.34]
[1744980428080,0.24835166,84558.0,84556.0,0.34]
[1744980428518,0.23651887,84560.0,84558.0,0.34]
[1744980429074,0.23652124,84559.0,84558.0,0.34]
[1744980431112,0.23651897,84560.0,84558.0,0.34]
[1744980432514,0.23651303,84562.0,84560.0,0.34]
[1744980432712,0.23651565,84561.0,84560.0,0.34]
[1744980433450,0.23651844,84560.0,84558.0,0.56469636]
[1744980433655,0.24834143,84561.0,84558.0,0.56469636]
[1744980435186,0.24834143,84561.0,84559.0,0.01104463]
[1744980435386,0.24834143,84561.0,84560.0,0.34827153]
[1744980435747,0.24834143,84561.0,84560.0,0.35565279]
[1744980436459,0.24834143,84561.0,84560.0,0.02669742]
[1744980437158,0.23651767,84562.0,84560.0,0.36669742]
[1744980437371,0.23651565,84561.0,84560.0,0.36669742]
[1744980437666,0.23651565,84561.0,84560.0,0.35565279]
[1744980438016,0.23651767,84562.0,84560.0,0.35565279]
[1744980438213,0.23651767,84562.0,84561.0,0.00738126]
[1744980439130,0.23651767,84562.0,84561.0,0.01565279]
[1744980439458,0.25721005,84562.0,84561.0,0.01565279]
[1744980440001,0.25721005,84562.0,84561.0,0.01554364]
[1744980440190,0.25721005,84562.0,84561.0,0.02657121]
[1744980441778,0.02069238,84562.0,84561.0,0.02657121]
[1744980441946,0.25720523,84562.0,84561.0,0.02657121]
[1744980442847,0.02069238,84562.0,84561.0,0.36657121]
[1744980443479,0.02069238,84562.0,84561.0,0.57943529]
[1744980443883,0.23650806,84564.0,84562.0,0.34]
[1744980444086,0.01182522,84565.0,84562.0,0.34]
[1744980444087,0.23651005,84563.0,84562.0,0.34]
[1744980444290,0.02069297,84563.0,84562.0,0.34]
[1744980444710,0.02069297,84563.0,84562.0,0.34827153]
[1744980444928,0.02069297,84563.0,84562.0,0.0192991]
[1744980445113,0.25720302,84563.0,84562.0,0.0192991]
[1744980446332,0.02069297,84563.0,84562.0,0.0192991]
[1744980447448,0.02069297,84563.0,84562.0,0.23216066]
[1744980448094,0.24833098,84565.0,84562.0,0.23216066]
[1744980448299,0.02069355,84564.0,84563.0,0.00827153]
[1744980448870,0.02069355,84564.0,84563.0,0.0192991]
[1744980449065,0.25720081,84564.0,84563.0,0.0192991]
[1744980451770,0.25820081,84564.0,84563.0,0.0192991]
[1744980451955,0.25820081,84564.0,84563.0,0.02668011]
[1744980457080,0.25920081,84564.0,84563.0,0.02668011]
[1744980457372,0.25231674,84564.0,84563.0,0.02668011]
[1744980458666,0.23653884,84553.0,84551.0,0.01182718]
[1744980458827,0.23653802,84553.0,84551.0,0.01182718]
[1744980459027,0.01655886,84552.0,84551.0,0.01182718]
[1744980459464,0.01655886,84552.0,84551.0,0.22471644]
[1744980459724,0.01655886,84552.0,84550.0,0.40927794]
[1744980459883,0.23654004,84553.0,84550.0,0.23528792]
[1744980460061,0.01655839,84551.0,84550.0,0.23528792]
[1744980460419,0.24836694,84553.0,84551.0,0.2128892]
[1744980460642,0.23654082,84552.0,84550.0,0.24711524]
[1744980460816,0.24836694,84553.0,84550.0,0.24711524]
[1744980462777,0.24836206,84554.0,84551.0,0.22471626]
[1744980462961,0.23653507,84556.0,84553.0,0.21288422]
[1744980463192,0.24835862,84557.0,84552.0,0.22471187]